[Event "Titled Tuesday Blitz June 27 Early 2023"]
[White "Vlassov, Nikolai"]
[Black "Fridman, Daniel"]
[WhiteFideId "4103360"]
[BlackFideId "11600454"]
[WhiteElo "2589"]
[BlackElo "2837"]
[Result "1-0"]
[Round "3"]
[TimeControl "180+2"]
[Date "2023.06.27"]
[WhiteClock "0:00:40"]
[BlackClock "0:00:10"]
[Board "45"]

1. e4 {[%clk 0:03:00]}  c6 {[%clk 0:02:57]} 2. d4 {[%clk 0:03:00]}  d5 {[%clk 0:02:58]} 3. e5 {[%clk 0:03:00]}  c5 {[%clk 0:02:58]} 4. dxc5 {[%clk 0:03:00]}  Nc6 {[%clk 0:02:58]} 5. Bb5 {[%clk 0:02:59]}  e6 {[%clk 0:02:57]} 6. Be3 {[%clk 0:02:58]}  Bd7 {[%clk 0:02:57]} 7. Bxc6 {[%clk 0:02:57]}  Bxc6 {[%clk 0:02:58]} 8. Nf3 {[%clk 0:02:55]}  Ne7 {[%clk 0:02:58]} 9. O-O {[%clk 0:02:54]}  Nf5 {[%clk 0:02:58]} 10. Bd4 {[%clk 0:02:54]}  g5 {[%clk 0:02:50]} 11. c3 {[%clk 0:02:53]}  g4 {[%clk 0:02:50]} 12. Ne1 {[%clk 0:02:52]}  h5 {[%clk 0:02:48]} 13. Nd3 {[%clk 0:02:50]}  Bb5 {[%clk 0:02:44]} 14. Re1 {[%clk 0:02:49]}  Qg5 {[%clk 0:02:43]} 15. Na3 {[%clk 0:02:40]}  Bc6 {[%clk 0:02:38]} 16. b4 {[%clk 0:02:32]}  a6 {[%clk 0:02:27]} 17. Nc2 {[%clk 0:02:25]}  h4 {[%clk 0:02:21]} 18. Ne3 {[%clk 0:02:14]}  g3 {[%clk 0:02:17]} 19. Nxf5 {[%clk 0:02:00]}  gxh2+ {[%clk 0:02:11]} 20. Kxh2 {[%clk 0:01:58]}  Qxf5 {[%clk 0:02:11]} 21. Qf3 {[%clk 0:01:57]}  Qxf3 {[%clk 0:02:05]} 22. gxf3 {[%clk 0:01:57]}  a5 {[%clk 0:02:05]} 23. a3 {[%clk 0:01:50]}  Bb5 {[%clk 0:02:03]} 24. Nb2 {[%clk 0:01:39]}  Bh6 {[%clk 0:02:00]} 25. a4 {[%clk 0:01:36]}  Bf4+ {[%clk 0:01:59]} 26. Kh3 {[%clk 0:01:35]}  Bd7 {[%clk 0:01:58]} 27. Nd3 {[%clk 0:01:31]}  Bh6 {[%clk 0:01:51]} 28. b5 {[%clk 0:01:31]}  Ke7 {[%clk 0:01:43]} 29. Rg1 {[%clk 0:01:30]}  Rag8 {[%clk 0:01:42]} 30. Rg4 {[%clk 0:01:28]}  Rg5 {[%clk 0:01:23]} 31. Rag1 {[%clk 0:01:24]}  Rf5 {[%clk 0:01:23]} 32. f4 {[%clk 0:01:19]}  Kf8 {[%clk 0:01:15]} 33. Rxh4 {[%clk 0:01:16]}  Be8 {[%clk 0:00:59]} 34. Rgg4 {[%clk 0:01:15]}  Bg7 {[%clk 0:00:46]} 35. Rxh8+ {[%clk 0:01:12]}  Bxh8 {[%clk 0:00:47]} 36. Rh4 {[%clk 0:01:07]}  Bg7 {[%clk 0:00:46]} 37. Kg4 {[%clk 0:01:06]}  Ke7 {[%clk 0:00:40]} 38. Rh7 {[%clk 0:00:59]}  Bf8 {[%clk 0:00:36]} 39. Ne1 {[%clk 0:00:56]}  Kd8 {[%clk 0:00:31]} 40. Nc2 {[%clk 0:00:53]}  f6 {[%clk 0:00:26]} 41. exf6 {[%clk 0:00:46]}  Bg6 {[%clk 0:00:23]} 42. Rxb7 {[%clk 0:00:45]}  Bh5+ {[%clk 0:00:20]} 43. Kg3 {[%clk 0:00:43]}  Bh6 {[%clk 0:00:10]} 44. Be5 {[%clk 0:00:40]} 1-0


[Site "https://www.chess.com"]

[Event "Titled Tuesday Blitz June 27 Early 2023"]
[White "Bazeev, German"]
[Black "Rosh Jain"]
[WhiteFideId "24119350"]
[BlackFideId "25789465"]
[WhiteElo "2818"]
[BlackElo "2289"]
[Result "1-0"]
[Round "3"]
[TimeControl "180+2"]
[Date "2023.06.27"]
[WhiteClock "0:01:03"]
[BlackClock "0:00:43"]
[Board "50"]

1. d4 {[%clk 0:03:00]}  Nf6 {[%clk 0:02:59]} 2. Nf3 {[%clk 0:03:01]}  d5 {[%clk 0:02:59]} 3. c4 {[%clk 0:03:01]}  e6 {[%clk 0:02:59]} 4. g3 {[%clk 0:03:02]}  Be7 {[%clk 0:02:58]} 5. Bg2 {[%clk 0:03:02]}  O-O {[%clk 0:02:58]} 6. O-O {[%clk 0:03:03]}  b6 {[%clk 0:02:59]} 7. cxd5 {[%clk 0:03:03]}  exd5 {[%clk 0:02:59]} 8. Nc3 {[%clk 0:03:04]}  Bb7 {[%clk 0:02:58]} 9. Bf4 {[%clk 0:03:04]}  c5 {[%clk 0:02:58]} 10. Rc1 {[%clk 0:03:05]}  Nc6 {[%clk 0:02:58]} 11. h4 {[%clk 0:03:02]}  h6 {[%clk 0:02:57]} 12. e3 {[%clk 0:02:56]}  Ba6 {[%clk 0:02:54]} 13. Re1 {[%clk 0:02:56]}  Nb4 {[%clk 0:02:54]} 14. Ne5 {[%clk 0:02:53]}  Rc8 {[%clk 0:02:39]} 15. Bh3 {[%clk 0:02:50]}  Rc7 {[%clk 0:02:35]} 16. a3 {[%clk 0:02:46]}  Nc6 {[%clk 0:02:34]} 17. Nxc6 {[%clk 0:02:47]}  Rxc6 {[%clk 0:02:34]} 18. Qa4 {[%clk 0:02:47]}  Bb7 {[%clk 0:02:33]} 19. Qxa7 {[%clk 0:02:43]}  Ba8 {[%clk 0:02:31]} 20. dxc5 {[%clk 0:02:38]}  Bxc5 {[%clk 0:02:26]} 21. b4 {[%clk 0:02:34]}  Bd6 {[%clk 0:02:14]} 22. Bxd6 {[%clk 0:02:34]}  Qxd6 {[%clk 0:02:15]} 23. Nb5 {[%clk 0:02:32]}  Rxc1 {[%clk 0:01:54]} 24. Rxc1 {[%clk 0:02:33]}  Qe5 {[%clk 0:01:52]} 25. Nd4 {[%clk 0:02:31]}  Qd6 {[%clk 0:01:50]} 26. Qc7 {[%clk 0:02:30]}  Ne4 {[%clk 0:01:46]} 27. Qxd6 {[%clk 0:02:29]}  Nxd6 {[%clk 0:01:46]} 28. Rc7 {[%clk 0:02:29]}  Nc4 {[%clk 0:01:40]} 29. a4 {[%clk 0:02:27]}  g6 {[%clk 0:01:38]} 30. Bf1 {[%clk 0:02:24]}  Ne5 {[%clk 0:01:32]} 31. a5 {[%clk 0:02:24]}  bxa5 {[%clk 0:01:32]} 32. bxa5 {[%clk 0:02:25]}  Rb8 {[%clk 0:01:32]} 33. a6 {[%clk 0:02:25]}  Kg7 {[%clk 0:01:28]} 34. a7 {[%clk 0:02:24]}  Rb7 {[%clk 0:01:27]} 35. Ne6+ {[%clk 0:02:00]}  Kf6 {[%clk 0:01:27]} 36. Rxb7 {[%clk 0:02:01]}  Bxb7 {[%clk 0:01:27]} 37. Nd8 {[%clk 0:02:02]}  Ba8 {[%clk 0:01:24]} 38. Ba6 {[%clk 0:02:02]}  Nd7 {[%clk 0:01:13]} 39. Bb7 {[%clk 0:02:00]}  Nb6 {[%clk 0:01:13]} 40. Bxa8 {[%clk 0:01:52]}  Nxa8 {[%clk 0:01:14]} 41. Kg2 {[%clk 0:01:50]}  Ke7 {[%clk 0:01:13]} 42. Nxf7 {[%clk 0:01:39]}  Kxf7 {[%clk 0:01:12]} 43. g4 {[%clk 0:01:38]}  Ke7 {[%clk 0:01:12]} 44. f4 {[%clk 0:01:39]}  Kd7 {[%clk 0:01:11]} 45. Kf3 {[%clk 0:01:36]}  Ke6 {[%clk 0:01:02]} 46. Ke2 {[%clk 0:01:36]}  h5 {[%clk 0:00:55]} 47. f5+ {[%clk 0:01:34]}  gxf5 {[%clk 0:00:53]} 48. gxh5 {[%clk 0:01:29]}  Kf6 {[%clk 0:00:52]} 49. Kf3 {[%clk 0:01:28]}  Nc7 {[%clk 0:00:49]} 50. Kg3 {[%clk 0:01:26]}  Ke5 {[%clk 0:00:42]} 51. h6 {[%clk 0:01:25]}  Kf6 {[%clk 0:00:41]} 52. h7 {[%clk 0:01:26]}  Kg7 {[%clk 0:00:40]} 53. Kf4 {[%clk 0:01:27]}  Kxh7 {[%clk 0:00:40]} 54. Kxf5 {[%clk 0:01:28]}  Kh6 {[%clk 0:00:38]} 55. Kf6 {[%clk 0:01:24]}  Kh5 {[%clk 0:00:32]} 56. Ke7 {[%clk 0:01:24]}  Kxh4 {[%clk 0:00:31]} 57. Kd7 {[%clk 0:01:25]}  Na8 {[%clk 0:00:31]} 58. Kc6 {[%clk 0:01:23]}  Kg5 {[%clk 0:00:28]} 59. Kb7 {[%clk 0:01:22]}  Kf5 {[%clk 0:00:27]} 60. Kxa8 {[%clk 0:01:23]}  Ke4 {[%clk 0:00:27]} 61. Kb7 {[%clk 0:01:24]}  Kxe3 {[%clk 0:00:28]} 62. a8=Q {[%clk 0:01:24]}  d4 {[%clk 0:00:29]} 63. Qa4 {[%clk 0:01:23]}  d3 {[%clk 0:00:30]} 64. Qd1 {[%clk 0:01:22]}  d2 {[%clk 0:00:30]} 65. Kc6 {[%clk 0:01:23]}  Kd3 {[%clk 0:00:30]} 66. Kc5 {[%clk 0:01:24]}  Kc3 {[%clk 0:00:31]} 67. Kd5 {[%clk 0:01:24]}  Kd3 {[%clk 0:00:32]} 68. Ke5 {[%clk 0:01:25]}  Kc3 {[%clk 0:00:33]} 69. Ke4 {[%clk 0:01:25]}  Kc4 {[%clk 0:00:33]} 70. Qxd2 {[%clk 0:01:26]}  Kb5 {[%clk 0:00:33]} 71. Qg2 {[%clk 0:01:23]}  Ka6 {[%clk 0:00:34]} 72. Qh1 {[%clk 0:01:23]}  Ka7 {[%clk 0:00:35]} 73. Qh2 {[%clk 0:01:23]}  Ka8 {[%clk 0:00:36]} 74. Kf3 {[%clk 0:01:23]}  Ka7 {[%clk 0:00:37]} 75. Qb2 {[%clk 0:01:13]}  Ka8 {[%clk 0:00:37]} 76. Kf4 {[%clk 0:01:13]}  Ka7 {[%clk 0:00:38]} 77. Ke4 {[%clk 0:01:13]}  Ka8 {[%clk 0:00:39]} 78. Kd4 {[%clk 0:01:14]}  Ka7 {[%clk 0:00:40]} 79. Kd5 {[%clk 0:01:15]}  Ka8 {[%clk 0:00:41]} 80. Kc6 {[%clk 0:01:16]}  Ka7 {[%clk 0:00:42]} 81. Qb6+ {[%clk 0:01:02]}  Ka8 {[%clk 0:00:43]} 82. Qb7# {[%clk 0:01:03]} 1-0


[Site "https://www.chess.com"]

[Event "Titled Tuesday Blitz June 27 Early 2023"]
[White "Firouzja, Alireza"]
[Black "Dishman, Stephen"]
[WhiteFideId "12573981"]
[BlackFideId "403024"]
[WhiteElo "3121"]
[BlackElo "2365"]
[Result "1-0"]
[Round "3"]
[TimeControl "180+2"]
[Date "2023.06.27"]
[WhiteClock "0:01:24"]
[BlackClock "0:00:12"]
[Board "51"]

1. d4 {[%clk 0:02:58]}  d5 {[%clk 0:02:59]} 2. Bg5 {[%clk 0:02:58]}  f6 {[%clk 0:02:59]} 3. Bf4 {[%clk 0:02:58]}  c5 {[%clk 0:02:57]} 4. e3 {[%clk 0:02:55]}  Nc6 {[%clk 0:02:57]} 5. Nf3 {[%clk 0:02:53]}  Bg4 {[%clk 0:02:51]} 6. c4 {[%clk 0:02:50]}  cxd4 {[%clk 0:02:35]} 7. cxd5 {[%clk 0:02:47]}  Qxd5 {[%clk 0:02:30]} 8. Nc3 {[%clk 0:02:44]}  Qa5 {[%clk 0:02:28]} 9. exd4 {[%clk 0:02:43]}  e5 {[%clk 0:02:14]} 10. dxe5 {[%clk 0:02:41]}  fxe5 {[%clk 0:02:13]} 11. Be3 {[%clk 0:02:18]}  e4 {[%clk 0:01:58]} 12. h3 {[%clk 0:02:18]}  Rd8 {[%clk 0:01:40]} 13. Qb3 {[%clk 0:02:12]}  Bc8 {[%clk 0:01:18]} 14. Ng5 {[%clk 0:02:11]}  Nh6 {[%clk 0:00:54]} 15. Be2 {[%clk 0:01:48]}  Be7 {[%clk 0:00:51]} 16. Nxe4 {[%clk 0:01:47]}  Nf5 {[%clk 0:00:46]} 17. Bb5 {[%clk 0:01:46]}  Nxe3 {[%clk 0:00:44]} 18. fxe3 {[%clk 0:01:44]}  Qb6 {[%clk 0:00:42]} 19. O-O {[%clk 0:01:42]}  Qxe3+ {[%clk 0:00:40]} 20. Kh1 {[%clk 0:01:41]}  Bxh3 {[%clk 0:00:37]} 21. Qf7+ {[%clk 0:01:26]}  Kd7 {[%clk 0:00:37]} 22. Rf3 {[%clk 0:01:26]}  Bxg2+ {[%clk 0:00:19]} 23. Kxg2 {[%clk 0:01:27]}  Qh6 {[%clk 0:00:18]} 24. Bxc6+ {[%clk 0:01:23]}  bxc6 {[%clk 0:00:12]} 25. Rd1+ {[%clk 0:01:24]} 1-0


[Site "https://www.chess.com"]

[Event "Titled Tuesday Blitz June 27 Early 2023"]
[White "Talibov, Shiroghlan"]
[Black "Manukyan, Sargis V."]
[WhiteFideId "13429078"]
[BlackFideId "13303465"]
[WhiteElo "2817"]
[BlackElo "2624"]
[Result "1-0"]
[Round "3"]
[TimeControl "180+2"]
[Date "2023.06.27"]
[WhiteClock "0:01:07"]
[BlackClock "0:00:25"]
[Board "56"]

1. a3 {[%clk 0:02:56]}  Nf6 {[%clk 0:02:56]} 2. c4 {[%clk 0:02:55]}  e6 {[%clk 0:02:51]} 3. d4 {[%clk 0:02:43]}  c5 {[%clk 0:02:46]} 4. dxc5 {[%clk 0:02:42]}  Bxc5 {[%clk 0:02:36]} 5. Nf3 {[%clk 0:02:39]}  d5 {[%clk 0:02:35]} 6. b4 {[%clk 0:02:38]}  Be7 {[%clk 0:02:27]} 7. e3 {[%clk 0:02:38]}  O-O {[%clk 0:02:21]} 8. Bb2 {[%clk 0:02:38]}  a5 {[%clk 0:02:21]} 9. b5 {[%clk 0:02:30]}  Nbd7 {[%clk 0:02:18]} 10. Nbd2 {[%clk 0:02:29]}  Nc5 {[%clk 0:02:18]} 11. cxd5 {[%clk 0:02:24]}  Nxd5 {[%clk 0:02:13]} 12. Be2 {[%clk 0:02:25]}  Bf6 {[%clk 0:02:08]} 13. Qc1 {[%clk 0:02:16]}  Na4 {[%clk 0:01:56]} 14. Bxf6 {[%clk 0:02:14]}  Qxf6 {[%clk 0:01:56]} 15. O-O {[%clk 0:02:15]}  Bd7 {[%clk 0:01:49]} 16. Ne4 {[%clk 0:02:12]}  Qg6 {[%clk 0:01:30]} 17. Bd3 {[%clk 0:02:00]}  f5 {[%clk 0:01:29]} 18. Nd6 {[%clk 0:01:52]}  e5 {[%clk 0:01:29]} 19. Nxb7 {[%clk 0:01:38]}  Rfc8 {[%clk 0:01:12]} 20. Qd2 {[%clk 0:01:31]}  Nac3 {[%clk 0:01:01]} 21. Nxe5 {[%clk 0:01:26]}  Qb6 {[%clk 0:00:51]} 22. Nxd7 {[%clk 0:01:19]}  Qxb7 {[%clk 0:00:50]} 23. Bxf5 {[%clk 0:01:19]}  Rd8 {[%clk 0:00:41]} 24. e4 {[%clk 0:01:10]}  Nf4 {[%clk 0:00:25]} 25. Rfe1 {[%clk 0:01:07]} 1-0


[Site "https://www.chess.com"]

[Event "Titled Tuesday Blitz June 27 Early 2023"]
[White "Bachmann, Axel"]
[Black "Asavasaetakul, Chawit"]
[WhiteFideId "3700488"]
[BlackFideId "6204856"]
[WhiteElo "2794"]
[BlackElo "2615"]
[Result "1-0"]
[Round "3"]
[TimeControl "180+2"]
[Date "2023.06.27"]
[WhiteClock "0:00:13"]
[BlackClock "0:00:11"]
[Board "58"]

1. c4 {[%clk 0:03:00]}  c6 {[%clk 0:02:58]} 2. Nf3 {[%clk 0:03:00]}  d5 {[%clk 0:02:58]} 3. e3 {[%clk 0:03:01]}  Nf6 {[%clk 0:02:59]} 4. Nc3 {[%clk 0:03:01]}  a6 {[%clk 0:02:58]} 5. b3 {[%clk 0:02:55]}  Bf5 {[%clk 0:02:59]} 6. Nh4 {[%clk 0:02:53]}  Bg4 {[%clk 0:02:58]} 7. f3 {[%clk 0:02:49]}  Bh5 {[%clk 0:02:58]} 8. g4 {[%clk 0:02:49]}  Bg6 {[%clk 0:02:58]} 9. Bb2 {[%clk 0:02:46]}  e6 {[%clk 0:02:58]} 10. Nxg6 {[%clk 0:02:45]}  hxg6 {[%clk 0:02:58]} 11. Qc2 {[%clk 0:02:44]}  Nbd7 {[%clk 0:02:43]} 12. O-O-O {[%clk 0:02:36]}  b5 {[%clk 0:02:31]} 13. g5 {[%clk 0:02:33]}  Nh7 {[%clk 0:02:26]} 14. f4 {[%clk 0:02:30]}  bxc4 {[%clk 0:02:26]} 15. bxc4 {[%clk 0:02:30]}  Rb8 {[%clk 0:02:21]} 16. d4 {[%clk 0:02:30]}  Bb4 {[%clk 0:02:12]} 17. a3 {[%clk 0:02:23]}  Be7 {[%clk 0:02:08]} 18. c5 {[%clk 0:02:17]}  Qc8 {[%clk 0:01:51]} 19. h4 {[%clk 0:02:15]}  Qb7 {[%clk 0:01:50]} 20. Na4 {[%clk 0:02:11]}  Nxg5 {[%clk 0:01:39]} 21. fxg5 {[%clk 0:02:10]}  Bxg5 {[%clk 0:01:39]} 22. Kb1 {[%clk 0:01:39]}  Rxh4 {[%clk 0:01:31]} 23. Rxh4 {[%clk 0:01:37]}  Bxh4 {[%clk 0:01:31]} 24. Bd3 {[%clk 0:01:30]}  Ke7 {[%clk 0:01:06]} 25. Ka1 {[%clk 0:01:17]}  Bg5 {[%clk 0:01:01]} 26. Re1 {[%clk 0:01:11]}  Rh8 {[%clk 0:00:56]} 27. Bc3 {[%clk 0:01:07]}  Rh3 {[%clk 0:00:54]} 28. Bd2 {[%clk 0:01:02]}  e5 {[%clk 0:00:55]} 29. Nb6 {[%clk 0:00:56]}  Nxb6 {[%clk 0:00:53]} 30. cxb6 {[%clk 0:00:51]}  Qxb6 {[%clk 0:00:52]} 31. Rb1 {[%clk 0:00:51]}  Qc7 {[%clk 0:00:52]} 32. Bxa6 {[%clk 0:00:50]}  Ke6 {[%clk 0:00:44]} 33. Rb7 {[%clk 0:00:42]}  Qd8 {[%clk 0:00:39]} 34. Qxc6+ {[%clk 0:00:37]}  Kf5 {[%clk 0:00:39]} 35. Rxf7+ {[%clk 0:00:34]}  Bf6 {[%clk 0:00:39]} 36. Bc8+ {[%clk 0:00:33]}  Kg5 {[%clk 0:00:38]} 37. Bxh3 {[%clk 0:00:31]}  exd4 {[%clk 0:00:38]} 38. exd4+ {[%clk 0:00:20]}  Kh4 {[%clk 0:00:37]} 39. Bd7 {[%clk 0:00:18]}  Bxd4+ {[%clk 0:00:37]} 40. Ka2 {[%clk 0:00:18]}  Qb8 {[%clk 0:00:31]} 41. Qc2 {[%clk 0:00:16]}  Qe5 {[%clk 0:00:18]} 42. Qd3 {[%clk 0:00:13]}  Ba1 {[%clk 0:00:11]} 43. Qh3# {[%clk 0:00:13]} 1-0


[Site "https://www.chess.com"]

[Event "Titled Tuesday Blitz June 27 Early 2023"]
[White "Aradhya, Garg"]
[Black "Skuhala, Jernej"]
[WhiteFideId "25006746"]
[BlackFideId "14605651"]
[WhiteElo "2725"]
[BlackElo "2596"]
[Result "1/2-1/2"]
[Round "3"]
[TimeControl "180+2"]
[Date "2023.06.27"]
[WhiteClock "0:00:25"]
[BlackClock "0:01:26"]
[Board "61"]

1. d4 {[%clk 0:03:00]}  d5 {[%clk 0:03:00]} 2. c4 {[%clk 0:03:01]}  e6 {[%clk 0:03:00]} 3. Nf3 {[%clk 0:03:01]}  Nf6 {[%clk 0:03:00]} 4. g3 {[%clk 0:03:02]}  Be7 {[%clk 0:03:01]} 5. Bg2 {[%clk 0:03:02]}  O-O {[%clk 0:03:01]} 6. Nc3 {[%clk 0:03:02]}  dxc4 {[%clk 0:03:01]} 7. Ne5 {[%clk 0:03:01]}  c5 {[%clk 0:03:02]} 8. dxc5 {[%clk 0:03:01]}  Qc7 {[%clk 0:03:02]} 9. Nxc4 {[%clk 0:02:57]}  Bxc5 {[%clk 0:03:02]} 10. Be3 {[%clk 0:02:30]}  a6 {[%clk 0:02:49]} 11. O-O {[%clk 0:02:26]}  Bxe3 {[%clk 0:02:46]} 12. Nxe3 {[%clk 0:02:27]}  Bd7 {[%clk 0:02:46]} 13. Qd4 {[%clk 0:02:15]}  Bc6 {[%clk 0:02:44]} 14. Rfd1 {[%clk 0:02:15]}  Bxg2 {[%clk 0:02:44]} 15. Kxg2 {[%clk 0:02:16]}  Nc6 {[%clk 0:02:44]} 16. Qf4 {[%clk 0:02:09]}  Qxf4 {[%clk 0:02:31]} 17. gxf4 {[%clk 0:02:09]}  Nh5 {[%clk 0:02:32]} 18. Kf3 {[%clk 0:02:07]}  Rfd8 {[%clk 0:02:32]} 19. Rxd8+ {[%clk 0:01:55]}  Rxd8 {[%clk 0:02:32]} 20. Kg4 {[%clk 0:01:32]}  Nf6+ {[%clk 0:02:29]} 21. Kg3 {[%clk 0:01:31]}  Nh5+ {[%clk 0:02:26]} 22. Kg4 {[%clk 0:01:31]}  Nf6+ {[%clk 0:02:26]} 23. Kh4 {[%clk 0:01:32]}  Rd2 {[%clk 0:02:21]} 24. Rb1 {[%clk 0:01:25]}  h6 {[%clk 0:02:19]} 25. Ng4 {[%clk 0:01:17]}  Nd5 {[%clk 0:02:12]} 26. Kg3 {[%clk 0:01:03]}  Nxc3 {[%clk 0:02:05]} 27. bxc3 {[%clk 0:01:04]}  b5 {[%clk 0:02:06]} 28. a4 {[%clk 0:01:03]}  bxa4 {[%clk 0:01:59]} 29. Rb6 {[%clk 0:01:03]}  Ne7 {[%clk 0:01:58]} 30. Rxa6 {[%clk 0:00:58]}  Rxe2 {[%clk 0:01:58]} 31. Rxa4 {[%clk 0:00:57]}  Rc2 {[%clk 0:01:58]} 32. Rc4 {[%clk 0:00:52]}  Nd5 {[%clk 0:01:50]} 33. Rc8+ {[%clk 0:00:36]}  Kh7 {[%clk 0:01:50]} 34. Ne5 {[%clk 0:00:37]}  f6 {[%clk 0:01:50]} 35. Nf3 {[%clk 0:00:36]}  Rxc3 {[%clk 0:01:47]} 36. Rxc3 {[%clk 0:00:35]}  Nxc3 {[%clk 0:01:48]} 37. Nd4 {[%clk 0:00:35]}  e5 {[%clk 0:01:46]} 38. fxe5 {[%clk 0:00:35]}  fxe5 {[%clk 0:01:47]} 39. Nc6 {[%clk 0:00:36]}  e4 {[%clk 0:01:46]} 40. Kf4 {[%clk 0:00:35]}  Nd1 {[%clk 0:01:45]} 41. Kxe4 {[%clk 0:00:28]}  Nxf2+ {[%clk 0:01:45]} 42. Kf3 {[%clk 0:00:29]}  Nh3 {[%clk 0:01:45]} 43. Ne5 {[%clk 0:00:28]}  Ng5+ {[%clk 0:01:45]} 44. Kg4 {[%clk 0:00:27]}  Ne6 {[%clk 0:01:45]} 45. h4 {[%clk 0:00:25]}  g6 {[%clk 0:01:31]} 46. h5 {[%clk 0:00:25]}  g5 {[%clk 0:01:31]} 47. Nf3 {[%clk 0:00:26]}  Kg7 {[%clk 0:01:30]} 48. Kf5 {[%clk 0:00:26]}  Nf4 {[%clk 0:01:29]} 49. Nxg5 {[%clk 0:00:25]}  Nxh5 {[%clk 0:01:28]} 50. Ne6+ {[%clk 0:00:26]}  Kh7 {[%clk 0:01:28]} 51. Nf8+ {[%clk 0:00:25]}  Kg7 {[%clk 0:01:25]} 52. Ne6+ {[%clk 0:00:25]}  Kf7 {[%clk 0:01:26]} 53. Nd8+ {[%clk 0:00:24]}  Kg7 {[%clk 0:01:26]} 54. Ne6+ {[%clk 0:00:25]} 1/2-1/2


[Site "https://www.chess.com"]

[Event "Titled Tuesday Blitz June 27 Early 2023"]
[White "Atakhan, Abtin"]
[Black "Gubajdullin, Alexei"]
[WhiteFideId "22502203"]
[BlackFideId "4141202"]
[WhiteElo "2725"]
[BlackElo "2593"]
[Result "1-0"]
[Round "3"]
[TimeControl "180+2"]
[Date "2023.06.27"]
[WhiteClock "0:00:12"]
[BlackClock "0:00:00"]
[Board "62"]

1. Nf3 {[%clk 0:03:00]}  f5 {[%clk 0:02:58]} 2. d3 {[%clk 0:03:00]}  Nf6 {[%clk 0:02:58]} 3. e4 {[%clk 0:03:00]}  d6 {[%clk 0:02:57]} 4. Nc3 {[%clk 0:03:00]}  e5 {[%clk 0:02:57]} 5. exf5 {[%clk 0:02:55]}  Bxf5 {[%clk 0:02:56]} 6. d4 {[%clk 0:02:56]}  e4 {[%clk 0:02:56]} 7. Nh4 {[%clk 0:02:45]}  Bg4 {[%clk 0:02:35]} 8. Be2 {[%clk 0:02:32]}  Bxe2 {[%clk 0:02:34]} 9. Qxe2 {[%clk 0:02:32]}  d5 {[%clk 0:02:35]} 10. Bg5 {[%clk 0:02:07]}  Bb4 {[%clk 0:02:24]} 11. Qb5+ {[%clk 0:01:58]}  Nc6 {[%clk 0:02:23]} 12. Qxb7 {[%clk 0:01:58]}  Nxd4 {[%clk 0:02:17]} 13. Bxf6 {[%clk 0:01:49]}  gxf6 {[%clk 0:02:13]} 14. O-O {[%clk 0:01:16]}  Bxc3 {[%clk 0:02:03]} 15. bxc3 {[%clk 0:01:15]}  Rb8 {[%clk 0:02:02]} 16. Qxa7 {[%clk 0:01:14]}  Nb5 {[%clk 0:01:32]} 17. Qe3 {[%clk 0:01:05]}  Nd6 {[%clk 0:01:24]} 18. Rad1 {[%clk 0:01:03]}  c6 {[%clk 0:01:23]} 19. Qh6 {[%clk 0:00:46]}  f5 {[%clk 0:00:43]} 20. Nxf5 {[%clk 0:00:40]}  Nxf5 {[%clk 0:00:43]} 21. Qh5+ {[%clk 0:00:41]}  Ke7 {[%clk 0:00:38]} 22. Qxf5 {[%clk 0:00:41]}  Qd6 {[%clk 0:00:37]} 23. c4 {[%clk 0:00:40]}  Rbd8 {[%clk 0:00:34]} 24. Rfe1 {[%clk 0:00:37]}  Qf6 {[%clk 0:00:30]} 25. Qxf6+ {[%clk 0:00:35]}  Kxf6 {[%clk 0:00:30]} 26. cxd5 {[%clk 0:00:35]}  cxd5 {[%clk 0:00:29]} 27. Rd4 {[%clk 0:00:26]}  Ke5 {[%clk 0:00:26]} 28. Red1 {[%clk 0:00:24]}  Rd6 {[%clk 0:00:15]} 29. c4 {[%clk 0:00:25]}  Rc8 {[%clk 0:00:15]} 30. Rxd5+ {[%clk 0:00:24]}  Rxd5 {[%clk 0:00:15]} 31. Rxd5+ {[%clk 0:00:25]}  Ke6 {[%clk 0:00:15]} 32. Rd4 {[%clk 0:00:24]}  Ke5 {[%clk 0:00:15]} 33. Rd5+ {[%clk 0:00:24]}  Ke6 {[%clk 0:00:15]} 34. Rd2 {[%clk 0:00:19]}  Rxc4 {[%clk 0:00:15]} 35. g3 {[%clk 0:00:19]}  Ra4 {[%clk 0:00:15]} 36. Kg2 {[%clk 0:00:19]}  h5 {[%clk 0:00:14]} 37. Kh3 {[%clk 0:00:19]}  Ra5 {[%clk 0:00:10]} 38. Kh4 {[%clk 0:00:19]}  Re5 {[%clk 0:00:08]} 39. Re2 {[%clk 0:00:19]}  Kf5 {[%clk 0:00:08]} 40. a4 {[%clk 0:00:19]}  Kg6 {[%clk 0:00:08]} 41. Ra2 {[%clk 0:00:19]}  Ra5 {[%clk 0:00:07]} 42. Ra3 {[%clk 0:00:18]}  Kh6 {[%clk 0:00:07]} 43. Kh3 {[%clk 0:00:17]}  Kg5 {[%clk 0:00:07]} 44. Kg2 {[%clk 0:00:18]}  Kf5 {[%clk 0:00:07]} 45. Kf1 {[%clk 0:00:18]}  Ke5 {[%clk 0:00:07]} 46. Ke2 {[%clk 0:00:18]}  Kd4 {[%clk 0:00:07]} 47. h4 {[%clk 0:00:17]}  Ke5 {[%clk 0:00:05]} 48. Ke3 {[%clk 0:00:17]}  Kf5 {[%clk 0:00:05]} 49. Kd4 {[%clk 0:00:16]}  Ra8 {[%clk 0:00:05]} 50. a5 {[%clk 0:00:16]}  Rd8+ {[%clk 0:00:05]} 51. Ke3 {[%clk 0:00:17]}  Ra8 {[%clk 0:00:05]} 52. a6 {[%clk 0:00:17]}  Ra7 {[%clk 0:00:05]} 53. Ra5+ {[%clk 0:00:17]}  Kg4 {[%clk 0:00:05]} 54. Kxe4 {[%clk 0:00:17]}  Kh3 {[%clk 0:00:05]} 55. Kf4 {[%clk 0:00:16]}  Kg2 {[%clk 0:00:05]} 56. Ra2 {[%clk 0:00:13]}  Kh3 {[%clk 0:00:05]} 57. Kg5 {[%clk 0:00:13]}  Rf7 {[%clk 0:00:04]} 58. a7 {[%clk 0:00:13]}  Rf8 {[%clk 0:00:00]} 59. a8=Q {[%clk 0:00:12]} 1-0


[Site "https://www.chess.com"]